[Event "CCT Chessable Masters Play-In 2025"]
[Site "Online"]
[Date "2025.02.17"]
[Round "2.14"]
[White "Lu, Shanglei"]
[Black "Kozak, Adam"]
[Result "1-0"]
[ECO "B76"]
[WhiteElo "2618"]
[BlackElo "2601"]
[PlyCount "135"]
[EventDate "2025.02.13"]
[EventType "swiss"]
[EventCountry "NET"]
[TimeControl "600"]
[WhiteClock "0:02:05"]
[BlackClock "0:02:02"]

1. e4 {[%emt 0:00:01]} c5 {[%emt 0:00:05]} 2. Nf3 {[%emt 0:00:02]} d6 {[%emt 0:00:01]} 3. d4 {[%emt 0:00:01]} cxd4 {[%emt 0:00:01]} 4. Nxd4 {[%emt 0:00:03]} Nf6 {[%emt 0:00:00]} 5. f3 {[%emt 0:00:01]} Nc6 {[%emt 0:00:02]} 6. Nc3 {[%emt 0:00:02]} g6 {[%emt 0:00:06]} 7. Be3 {[%emt 0:00:07]} Bg7 {[%emt 0:00:01]} 8. Qd2 {[%emt 0:00:00]} O-O {[%emt 0:00:01]} 9. g4 {[%emt 0:00:02]} Be6 {[%emt 0:00:08]} 10. Nxe6 {[%emt 0:00:04]} fxe6 {[%emt 0:00:01]} 11. O-O-O {[%emt 0:00:01]} Ne5 {[%emt 0:00:07]} 12. Be2 {[%emt 0:00:01]} Rc8 {[%emt 0:00:02]} 13. Nb5 {[%emt 0:00:19]} Nc4 {[%emt 0:00:21]} 14. Bxc4 {[%emt 0:00:01]} Rxc4 {[%emt 0:00:00]} 15. Nd4 {[%emt 0:00:04]} Qd7 {[%emt 0:00:42]} 16. Kb1 {[%emt 0:00:03]} Rfc8 {[%emt 0:00:08]} 17. c3 {[%emt 0:00:02]} b5 {[%emt 0:00:28]} 18. h4 {[%emt 0:00:07]} a5 {[%emt 0:00:13]} 19. h5 {[%emt 0:00:02]} b4 {[%emt 0:00:06]} 20. cxb4 {[%emt 0:00:02]} Rxb4 {[%emt 0:00:11]} 21. hxg6 {[%emt 0:00:07]} hxg6 {[%emt 0:00:01]} 22. Rc1 {[%emt 0:00:15]} Rcb8 {[%emt 0:00:48]} 23. Rc2 {[%emt 0:00:03]} Qb7 {[%emt 0:00:02]} 24. Qh2 {[%emt 0:01:49]} Kf7 {[%emt 0:00:21]} 25. Nc6 {[%emt 0:00:12]} Ra8 {[%emt 0:00:10]} 26. Nxb4 {[%emt 0:00:10]} axb4 {[%emt 0:00:00]} 27. b3 {[%emt 0:00:06]} Nd7 {[%emt 0:00:06]} 28. Qf4+ {[%emt 0:00:08]} Kg8 {[%emt 0:00:24]} 29. Qg5 {[%emt 0:00:09]} Ne5 {[%emt 0:00:20]} 30. Bd4 {[%emt 0:00:49]} Bf6 {[%emt 0:00:11]} 31. Qh6 {[%emt 0:00:16]} Kf7 {[%emt 0:01:07]} 32. Qh7+ {[%emt 0:00:08]} Ke8 {[%emt 0:00:01]} 33. Rhc1 {[%emt 0:00:17]} Kd7 {[%emt 0:00:43]} 34. Bxe5 {[%emt 0:00:12]} Bxe5 {[%emt 0:00:00]} 35. Rc7+ {[%emt 0:00:01]} Qxc7 {[%emt 0:00:00]} 36. Rxc7+ {[%emt 0:00:00]} Kxc7 {[%emt 0:00:00]} 37. Qxe7+ {[%emt 0:00:00]} Kb6 {[%emt 0:00:04]} 38. Qxe6 {[%emt 0:00:11]} Rf8 {[%emt 0:00:05]} 39. Qc4 {[%emt 0:00:08]} Ka5 {[%emt 0:00:01]} 40. Qc7+ {[%emt 0:00:04]} Kb5 {[%emt 0:00:01]} 41. Qb7+ {[%emt 0:00:14]} Kc5 {[%emt 0:00:02]} 42. Qa7+ {[%emt 0:00:16]} Kc6 {[%emt 0:00:01]} 43. Qa4+ {[%emt 0:00:04]} Kc5 {[%emt 0:00:01]} 44. Qa5+ {[%emt 0:00:01]} Kd4 {[%emt 0:00:00]} 45. Qxb4+ {[%emt 0:00:01]} Ke3 {[%emt 0:00:00]} 46. Qe1+ {[%emt 0:00:01]} Kf4 {[%emt 0:00:05]} 47. a4 {[%emt 0:00:09]} Rb8 {[%emt 0:00:02]} 48. Qd1 {[%emt 0:00:04]} Rc8 {[%emt 0:00:07]} 49. a5 {[%emt 0:00:03]} Rc5 {[%emt 0:00:01]} 50. b4 {[%emt 0:00:02]} Rc4 {[%emt 0:00:02]} 51. Qd2+ {[%emt 0:00:07]} Kg3 {[%emt 0:00:00]} 52. f4 {[%emt 0:00:05]} Rd4 {[%emt 0:00:04]} 53. Qe3+ {[%emt 0:00:07]} Kxg4 {[%emt 0:00:01]} 54. fxe5 {[%emt 0:00:01]} Rxb4+ {[%emt 0:00:01]} 55. Kc2 {[%emt 0:00:01]} dxe5 {[%emt 0:00:01]} 56. Qe2+ {[%emt 0:00:01]} Kh3 {[%emt 0:00:03]} 57. a6 {[%emt 0:00:04]} Ra4 {[%emt 0:00:01]} 58. Kb3 {[%emt 0:00:00]} Ra1 {[%emt 0:00:02]} 59. a7 {[%emt 0:00:07]} g5 {[%emt 0:00:02]} 60. Kb2 {[%emt 0:00:04]} Ra4 {[%emt 0:00:05]} 61. Qe3+ {[%emt 0:00:07]} Kh4 {[%emt 0:00:01]} 62. Qa3 {[%emt 0:00:01]} Rxa3 {[%emt 0:00:02]} 63. Kxa3 {[%emt 0:00:00]} g4 {[%emt 0:00:00]} 64. a8=Q {[%emt 0:00:01]} g3 {[%emt 0:00:01]} 65. Qg8 {[%emt 0:00:02]} Kh3 {[%emt 0:00:01]} 66. Qe6+ {[%emt 0:00:00]} Kh2 {[%emt 0:00:02]} 67. Qxe5 {[%emt 0:00:00]} Kh1 {[%emt 0:00:01]} 68. Qg5 {[%emt 0:00:02]} 1-0

[Event "CCT Chessable Masters Play-In 2025"]
[Site "Online"]
[Date "2025.02.17"]
[Round "2.15"]
[White "Vokhidov, Shamsiddin"]
[Black "Robson, Ray"]
[Result "1-0"]
[ECO "B52"]
[WhiteElo "2670"]
[BlackElo "2689"]
[PlyCount "113"]
[EventDate "2025.02.13"]
[EventType "swiss"]
[EventCountry "NET"]
[TimeControl "600"]
[WhiteClock "0:02:11"]

1. e4 {[%emt 0:00:01]} c5 {[%emt 0:00:02]} 2. Nf3 {[%emt 0:00:00]} d6 {[%emt 0:00:01]} 3. Bb5+ {[%emt 0:00:01]} Bd7 {[%emt 0:00:02]} 4. Bxd7+ {[%emt 0:00:01]} Nxd7 {[%emt 0:00:01]} 5. O-O {[%emt 0:00:04]} e6 {[%emt 0:00:01]} 6. c4 {[%emt 0:00:04]} Ne5 {[%emt 0:00:22]} 7. Nc3 {[%emt 0:00:02]} Ne7 {[%emt 0:00:10]} 8. Ne1 {[%emt 0:00:19]} N7c6 {[%emt 0:00:13]} 9. d3 {[%emt 0:00:02]} g5 {[%emt 0:00:08]} 10. a3 {[%emt 0:00:10]} Bg7 {[%emt 0:00:10]} 11. Rb1 {[%emt 0:00:05]} Qe7 {[%emt 0:00:37]} 12. b4 {[%emt 0:00:02]} O-O-O {[%emt 0:00:02]} 13. b5 {[%emt 0:00:04]} Nd4 {[%emt 0:00:08]} 14. Be3 {[%emt 0:00:26]} h5 {[%emt 0:00:32]} 15. Bxd4 {[%emt 0:00:08]} cxd4 {[%emt 0:00:01]} 16. Ne2 {[%emt 0:00:00]} Nd7 {[%emt 0:02:56]} 17. Nc2 {[%emt 0:00:03]} d5 {[%emt 0:00:07]} 18. cxd5 {[%emt 0:00:14]} exd5 {[%emt 0:00:01]} 19. Ncxd4 {[%emt 0:00:16]} Bxd4 {[%emt 0:00:11]} 20. Nxd4 {[%emt 0:00:03]} dxe4 {[%emt 0:00:00]} 21. Nf5 {[%emt 0:00:36]} Qe5 {[%emt 0:00:14]} 22. dxe4 {[%emt 0:00:02]} Nc5 {[%emt 0:00:06]} 23. Qc2 {[%emt 0:00:09]} Kb8 {[%emt 0:00:02]} 24. b6 {[%emt 0:00:09]} axb6 {[%emt 0:00:33]} 25. Rxb6 {[%emt 0:00:07]} Rd7 {[%emt 0:00:01]} 26. f3 {[%emt 0:00:20]} Rc8 {[%emt 0:00:03]} 27. Rb5 {[%emt 0:00:24]} Nd3 {[%emt 0:00:22]} 28. Qa4 {[%emt 0:00:46]} Rc5 {[%emt 0:00:13]} 29. Rb3 {[%emt 0:00:44]} Rcc7 {[%emt 0:00:01]} 30. Rb5 {[%emt 0:00:20]} Rc5 {[%emt 0:00:01]} 31. Rb3 {[%emt 0:00:03]} Rcc7 {[%emt 0:00:02]} 32. Qb5 {[%emt 0:00:01]} Qxb5 {[%emt 0:00:05]} 33. Rxb5 {[%emt 0:00:00]} Rc2 {[%emt 0:00:10]} 34. Ne3 {[%emt 0:00:02]} Re2 {[%emt 0:00:02]} 35. Nd5 {[%emt 0:00:02]} h4 {[%emt 0:00:21]} 36. h3 {[%emt 0:00:09]} Ra2 {[%emt 0:00:12]} 37. Rfb1 {[%emt 0:00:30]} Rxa3 {[%emt 0:00:07]} 38. Nf6 {[%emt 0:00:02]} Rc7 {[%emt 0:00:09]} 39. Rxg5 {[%emt 0:00:01]} Ra2 {[%emt 0:00:09]} 40. Nd5 {[%emt 0:00:09]} Rcc2 {[%emt 0:00:20]} 41. Rg7 {[%emt 0:00:03]} Ka7 {[%emt 0:00:20]} 42. Ne3 {[%emt 0:00:02]} Re2 {[%emt 0:00:03]} 43. Nf5 {[%emt 0:00:01]} Ka6 {[%emt 0:00:17]} 44. Nxh4 {[%emt 0:00:02]} b5 {[%emt 0:00:00]} 45. Rxf7 {[%emt 0:00:04]} b4 {[%emt 0:00:01]} 46. Rd7 {[%emt 0:00:03]} Nf4 {[%emt 0:00:02]} 47. Rg7 {[%emt 0:00:14]} Nd3 {[%emt 0:00:06]} 48. Nf5 {[%emt 0:00:07]} Ne1 {[%emt 0:00:05]} 49. Rg6+ {[%emt 0:00:11]} Ka7 {[%emt 0:00:01]} 50. Nd4 {[%emt 0:00:04]} Rxg2+ {[%emt 0:00:01]} 51. Rxg2 {[%emt 0:00:02]} Nxg2 {[%emt 0:00:00]} 52. Rxb4 {[%emt 0:00:03]} Nf4 {[%emt 0:00:01]} 53. h4 {[%emt 0:00:04]} Rg2+ {[%emt 0:00:02]} 54. Kf1 {[%emt 0:00:02]} Rh2 {[%emt 0:00:01]} 55. Nf5 {[%emt 0:00:03]} Rh1+ {[%emt 0:00:01]} 56. Kf2 {[%emt 0:00:01]} Nd3+ 57. Kg2 {[%emt 0:00:02]} 1-0

[Event "CCT Chessable Masters Play-In 2025"]
[Site "Online"]
[Date "2025.02.17"]
[Round "2.16"]
[White "Bortnyk, Olexandr"]
[Black "Chigaev, Maksim"]
[Result "0-1"]
[ECO "E69"]
[WhiteElo "2601"]
[BlackElo "2632"]
[PlyCount "99"]
[EventDate "2025.02.13"]
[EventType "swiss"]
[EventCountry "NET"]
[TimeControl "600"]
[BlackClock "0:01:09"]

1. e4 {[%emt 0:00:12]} c6 {[%emt 0:00:08]} 2. c4 {[%emt 0:00:11]} g6 {[%emt 0:00:03]} 3. Nc3 {[%emt 0:00:16]} Bg7 {[%emt 0:00:01]} 4. d4 {[%emt 0:00:01]} d6 {[%emt 0:00:01]} 5. g3 {[%emt 0:00:28]} Nf6 {[%emt 0:00:04]} 6. Bg2 {[%emt 0:00:02]} O-O {[%emt 0:00:01]} 7. Nge2 {[%emt 0:00:17]} Na6 {[%emt 0:00:44]} 8. O-O {[%emt 0:00:19]} e5 {[%emt 0:00:02]} 9. h3 {[%emt 0:00:06]} exd4 {[%emt 0:00:02]} 10. Nxd4 {[%emt 0:00:00]} Re8 {[%emt 0:00:01]} 11. Re1 {[%emt 0:00:22]} Nc5 {[%emt 0:00:02]} 12. Bf4 {[%emt 0:00:07]} a5 {[%emt 0:00:28]} 13. Qd2 {[%emt 0:00:06]} Nh5 {[%emt 0:00:34]} 14. Be3 {[%emt 0:00:55]} Nf6 {[%emt 0:00:07]} 15. Bh6 {[%emt 0:00:18]} Bxh6 {[%emt 0:00:11]} 16. Qxh6 {[%emt 0:00:01]} Nfd7 {[%emt 0:00:15]} 17. Rad1 {[%emt 0:00:22]} Qf6 {[%emt 0:00:09]} 18. f4 {[%emt 0:00:15]} a4 {[%emt 0:00:09]} 19. Nf3 {[%emt 0:00:45]} Nb6 {[%emt 0:00:14]} 20. e5 {[%emt 0:00:31]} Qg7 {[%emt 0:00:21]} 21. Qxg7+ {[%emt 0:00:04]} Kxg7 {[%emt 0:00:00]} 22. Rxd6 {[%emt 0:00:42]} Nxc4 {[%emt 0:00:10]} 23. Rd4 {[%emt 0:00:00]} Nxb2 {[%emt 0:00:09]} 24. Bf1 {[%emt 0:00:02]} a3 {[%emt 0:00:08]} 25. g4 {[%emt 0:00:01]} Be6 {[%emt 0:00:06]} 26. Re3 {[%emt 0:00:27]} Red8 {[%emt 0:01:25]} 27. Be2 {[%emt 0:00:14]} b5 {[%emt 0:00:09]} 28. Nb1 {[%emt 0:00:50]} Rxd4 {[%emt 0:00:25]} 29. Nxd4 {[%emt 0:00:00]} b4 {[%emt 0:00:00]} 30. Nxe6+ {[%emt 0:00:12]} fxe6 {[%emt 0:00:00]} 31. Nd2 {[%emt 0:00:08]} Rf8 {[%emt 0:00:15]} 32. f5 {[%emt 0:00:14]} gxf5 {[%emt 0:00:06]} 33. gxf5 {[%emt 0:00:00]} Rxf5 {[%emt 0:00:02]} 34. Bf3 {[%emt 0:00:27]} Ncd3 {[%emt 0:00:33]} 35. Bxc6 {[%emt 0:00:04]} Rxe5 {[%emt 0:00:02]} 36. Rg3+ {[%emt 0:00:01]} Kf8 {[%emt 0:00:01]} 37. Be4 {[%emt 0:00:19]} Nc1 {[%emt 0:00:10]} 38. Rf3+ {[%emt 0:00:06]} Ke7 {[%emt 0:00:02]} 39. Bb1 {[%emt 0:00:03]} Re2 {[%emt 0:00:21]} 40. Ne4 {[%emt 0:00:10]} Nxa2 {[%emt 0:00:15]} 41. Rg3 {[%emt 0:00:06]} Re1+ {[%emt 0:00:03]} 42. Kf2 {[%emt 0:00:01]} Rxb1 {[%emt 0:00:00]} 43. Rg7+ {[%emt 0:00:00]} Kd8 {[%emt 0:00:12]} 44. Nc5 {[%emt 0:00:03]} Nc3 {[%emt 0:00:07]} 45. Nb7+ {[%emt 0:00:07]} Ke8 {[%emt 0:00:07]} 46. Nd6+ {[%emt 0:00:00]} Kf8 {[%emt 0:00:01]} 47. Rf7+ {[%emt 0:00:01]} Kg8 {[%emt 0:00:01]} 48. Rb7 {[%emt 0:00:01]} a2 {[%emt 0:00:14]} 49. Ne8 {[%emt 0:00:02]} Ne4+ {[%emt 0:00:10]} 50. Kf3 {[%emt 0:00:01]} 0-1

[Event "CCT Chessable Masters Play-In 2025"]
[Site "Online"]
[Date "2025.02.17"]
[Round "2.17"]
[White "Sindarov, Javokhir"]
[Black "Daneshvar, Bardiya"]
[Result "1-0"]
[ECO "B06"]
[WhiteElo "2700"]
[BlackElo "2604"]
[PlyCount "117"]
[EventDate "2025.02.13"]
[EventType "swiss"]
[EventCountry "NET"]
[TimeControl "600"]
[WhiteClock "0:00:42"]
[BlackClock "0:00:07"]

1. e4 {[%emt 0:00:03]} c5 {[%emt 0:00:02]} 2. Nf3 {[%emt 0:00:01]} g6 {[%emt 0:00:00]} 3. c3 {[%emt 0:00:37]} d5 {[%emt 0:00:02]} 4. exd5 {[%emt 0:00:01]} Qxd5 {[%emt 0:00:00]} 5. d4 {[%emt 0:00:00]} Bg7 {[%emt 0:00:02]} 6. Nbd2 {[%emt 0:00:02]} cxd4 {[%emt 0:00:01]} 7. Bc4 {[%emt 0:00:02]} Qc5 {[%emt 0:00:00]} 8. Qb3 {[%emt 0:00:54]} Nh6 {[%emt 0:00:16]} 9. cxd4 {[%emt 0:00:14]} Qb6 {[%emt 0:00:21]} 10. Qxb6 {[%emt 0:00:33]} axb6 {[%emt 0:00:00]} 11. Ne4 {[%emt 0:00:01]} O-O {[%emt 0:00:23]} 12. O-O {[%emt 0:00:09]} Nf5 {[%emt 0:00:03]} 13. d5 {[%emt 0:00:11]} Na6 {[%emt 0:00:20]} 14. Re1 {[%emt 0:00:06]} Nc5 {[%emt 0:00:44]} 15. Nc3 {[%emt 0:00:05]} Nd6 {[%emt 0:01:16]} 16. Bf1 {[%emt 0:00:02]} Nb3 {[%emt 0:00:29]} 17. Rb1 {[%emt 0:00:01]} Nxc1 {[%emt 0:00:19]} 18. Rbxc1 {[%emt 0:00:01]} Bf6 {[%emt 0:00:02]} 19. Ne5 {[%emt 0:00:36]} Bf5 {[%emt 0:00:17]} 20. g4 {[%emt 0:00:19]} Bc8 {[%emt 0:00:12]} 21. f4 {[%emt 0:00:05]} Rd8 {[%emt 0:00:26]} 22. Kg2 {[%emt 0:00:08]} Kf8 {[%emt 0:00:15]} 23. Kf3 {[%emt 0:00:06]} Bd7 {[%emt 0:00:07]} 24. a3 {[%emt 0:00:13]} Be8 {[%emt 0:00:02]} 25. Ne4 {[%emt 0:00:01]} Nxe4 {[%emt 0:00:09]} 26. Kxe4 {[%emt 0:00:00]} g5 {[%emt 0:00:08]} 27. f5 {[%emt 0:00:37]} Ra4+ {[%emt 0:00:24]} 28. Rc4 {[%emt 0:00:01]} Ra5 {[%emt 0:00:03]} 29. Rd1 {[%emt 0:00:50]} Ba4 {[%emt 0:00:27]} 30. Rdd4 {[%emt 0:00:21]} Bb3 {[%emt 0:00:10]} 31. Rd2 {[%emt 0:00:28]} Bxc4 {[%emt 0:00:12]} 32. Nxc4 {[%emt 0:00:00]} Ra4 {[%emt 0:00:05]} 33. b3 {[%emt 0:00:19]} Ra7 {[%emt 0:00:08]} 34. a4 {[%emt 0:00:08]} b5 {[%emt 0:00:02]} 35. axb5 {[%emt 0:00:01]} Ra1 {[%emt 0:00:01]} 36. Bg2 {[%emt 0:00:09]} Rb1 {[%emt 0:00:08]} 37. Rd3 {[%emt 0:00:01]} Ra8 {[%emt 0:00:03]} 38. d6 {[%emt 0:00:04]} exd6 {[%emt 0:00:04]} 39. Kd5 {[%emt 0:00:07]} Be7 {[%emt 0:00:14]} 40. b6 {[%emt 0:00:09]} Rc8 {[%emt 0:00:10]} 41. Kd4 {[%emt 0:00:10]} d5 {[%emt 0:00:12]} 42. Bxd5 {[%emt 0:00:09]} Bc5+ {[%emt 0:00:05]} 43. Kc3 {[%emt 0:00:04]} Bxb6 {[%emt 0:00:04]} 44. Bxb7 {[%emt 0:00:03]} Rc7 {[%emt 0:00:14]} 45. Be4 {[%emt 0:00:03]} Bc5 {[%emt 0:00:17]} 46. f6 {[%emt 0:00:06]} Rc8 {[%emt 0:00:03]} 47. Bxh7 {[%emt 0:00:17]} Rb8 {[%emt 0:00:02]} 48. Kc2 {[%emt 0:00:03]} Rh1 {[%emt 0:00:01]} 49. Rd2 {[%emt 0:00:06]} Ra8 {[%emt 0:00:00]} 50. Kc3 {[%emt 0:00:11]} Rf1 {[%emt 0:00:06]} 51. Ne5 {[%emt 0:00:06]} Be3 {[%emt 0:00:15]} 52. Re2 {[%emt 0:00:05]} Rc8+ {[%emt 0:00:12]} 53. Kd3 {[%emt 0:00:01]} Rd1+ {[%emt 0:00:08]} 54. Kxe3 {[%emt 0:00:01]} Rc3+ {[%emt 0:00:01]} 55. Bd3 {[%emt 0:00:01]} Rxb3 {[%emt 0:00:02]} 56. Rc2 {[%emt 0:00:02]} Re1+ {[%emt 0:00:01]} 57. Kd4 {[%emt 0:00:02]} Rb4+ {[%emt 0:00:00]} 58. Kd5 {[%emt 0:00:02]} Rb8 {[%emt 0:00:03]} 59. Nd7+ {[%emt 0:00:00]} 1-0

[Event "CCT Chessable Masters Play-In 2025"]
[Site "Online"]
[Date "2025.02.17"]
[Round "2.18"]
[White "Bok, Benjamin"]
[Black "Ma, Qun"]
[Result "1-0"]
[ECO "D35"]
[WhiteElo "2583"]
[BlackElo "2645"]
[PlyCount "115"]
[EventDate "2025.02.13"]
[EventType "swiss"]
[EventCountry "NET"]
[TimeControl "600"]
[WhiteClock "0:00:18"]

1. d4 {[%emt 0:00:01]} d5 {[%emt 0:00:01]} 2. c4 {[%emt 0:00:01]} e6 {[%emt 0:00:01]} 3. Nc3 {[%emt 0:00:01]} Nf6 {[%emt 0:00:00]} 4. cxd5 {[%emt 0:00:01]} exd5 {[%emt 0:00:00]} 5. Bg5 {[%emt 0:00:01]} c6 {[%emt 0:00:02]} 6. e3 {[%emt 0:00:01]} h6 {[%emt 0:00:01]} 7. Bh4 {[%emt 0:00:01]} Be7 {[%emt 0:00:00]} 8. Bd3 {[%emt 0:00:01]} O-O {[%emt 0:00:00]} 9. Nge2 {[%emt 0:00:01]} Re8 {[%emt 0:00:01]} 10. O-O {[%emt 0:00:02]} Nbd7 {[%emt 0:00:00]} 11. a4 {[%emt 0:00:01]} Nh5 {[%emt 0:00:01]} 12. Bxe7 {[%emt 0:00:02]} Qxe7 {[%emt 0:00:01]} 13. a5 {[%emt 0:00:01]} Ndf6 {[%emt 0:00:02]} 14. Qc2 {[%emt 0:00:28]} g6 {[%emt 0:00:17]} 15. Na4 {[%emt 0:00:13]} a6 {[%emt 0:00:12]} 16. Nc5 {[%emt 0:00:25]} Ng7 {[%emt 0:00:08]} 17. Nc3 {[%emt 0:00:34]} Bf5 {[%emt 0:00:13]} 18. Rfe1 {[%emt 0:00:06]} Bxd3 {[%emt 0:00:04]} 19. Qxd3 {[%emt 0:00:00]} Nf5 {[%emt 0:00:20]} 20. e4 {[%emt 0:00:53]} dxe4 {[%emt 0:00:06]} 21. N3xe4 {[%emt 0:00:00]} Nxe4 {[%emt 0:00:42]} 22. Rxe4 {[%emt 0:00:03]} Qc7 {[%emt 0:00:02]} 23. h3 {[%emt 0:00:34]} Nd6 {[%emt 0:00:23]} 24. Re5 {[%emt 0:00:32]} Nf5 {[%emt 0:00:21]} 25. Rae1 {[%emt 0:00:46]} Rxe5 {[%emt 0:00:06]} 26. Rxe5 {[%emt 0:00:10]} Rd8 {[%emt 0:00:06]} 27. Re4 {[%emt 0:00:51]} Rd5 {[%emt 0:00:43]} 28. b4 {[%emt 0:00:15]} Kg7 {[%emt 0:00:25]} 29. g3 {[%emt 0:00:12]} Qd6 {[%emt 0:00:19]} 30. Qc3 {[%emt 0:00:22]} Qf6 {[%emt 0:00:27]} 31. Nb3 {[%emt 0:00:28]} h5 {[%emt 0:00:07]} 32. h4 {[%emt 0:00:04]} Nd6 {[%emt 0:00:07]} 33. Re5 {[%emt 0:00:33]} Rxe5 {[%emt 0:01:57]} 34. dxe5 {[%emt 0:00:00]} Qxf2+ {[%emt 0:00:01]} 35. Kxf2 {[%emt 0:00:00]} Ne4+ {[%emt 0:00:01]} 36. Ke3 {[%emt 0:00:07]} Nxc3 {[%emt 0:00:00]} 37. Nc5 {[%emt 0:00:08]} Nd5+ {[%emt 0:00:03]} 38. Kd4 {[%emt 0:00:02]} Nxb4 {[%emt 0:00:00]} 39. Nxb7 {[%emt 0:00:02]} g5 {[%emt 0:00:44]} 40. hxg5 {[%emt 0:00:38]} Kg6 {[%emt 0:00:01]} 41. Nd8 {[%emt 0:00:01]} Nc2+ {[%emt 0:00:55]} 42. Kc5 {[%emt 0:00:03]} Ne3 {[%emt 0:00:00]} 43. Kb6 {[%emt 0:00:22]} c5 {[%emt 0:00:07]} 44. Kxa6 {[%emt 0:00:17]} c4 {[%emt 0:00:02]} 45. e6 {[%emt 0:00:04]} fxe6 {[%emt 0:00:31]} 46. Nxe6 {[%emt 0:00:00]} c3 {[%emt 0:00:03]} 47. Kb7 {[%emt 0:00:02]} c2 {[%emt 0:00:06]} 48. Nf4+ {[%emt 0:00:00]} Kxg5 {[%emt 0:00:01]} 49. Ne2 {[%emt 0:00:00]} Nf5 {[%emt 0:00:03]} 50. a6 {[%emt 0:00:03]} Nd4 {[%emt 0:00:01]} 51. Nc1 {[%emt 0:00:03]} Nb5 {[%emt 0:00:00]} 52. Kb6 {[%emt 0:00:01]} Nd6 {[%emt 0:00:01]} 53. Kc6 {[%emt 0:00:01]} Nc8 {[%emt 0:00:00]} 54. Kc7 {[%emt 0:00:01]} Nd6 {[%emt 0:00:00]} 55. Kxd6 {[%emt 0:00:01]} Kg4 {[%emt 0:00:01]} 56. a7 {[%emt 0:00:00]} h4 {[%emt 0:00:00]} 57. gxh4 {[%emt 0:00:02]} Kxh4 {[%emt 0:00:04]} 58. a8=Q {[%emt 0:00:00]} 1-0

[Event "CCT Chessable Masters Play-In 2025"]
[Site "Online"]
[Date "2025.02.17"]
[Round "2.19"]
[White "Sjugirov, Sanan"]
[Black "Mamedov, Rauf"]
[Result "0-1"]
[ECO "B30"]
[WhiteElo "2643"]
[BlackElo "2656"]
[PlyCount "140"]
[EventDate "2025.02.13"]
[EventType "swiss"]
[EventCountry "NET"]
[TimeControl "600"]
[WhiteClock "0:00:03"]
[BlackClock "0:00:31"]

1. e4 {[%emt 0:00:01]} c5 {[%emt 0:00:01]} 2. Nf3 {[%emt 0:00:02]} Nc6 {[%emt 0:00:07]} 3. Bb5 {[%emt 0:00:02]} Nf6 {[%emt 0:00:02]} 4. Bxc6 {[%emt 0:00:07]} dxc6 {[%emt 0:00:02]} 5. d3 {[%emt 0:00:01]} Qc7 {[%emt 0:00:05]} 6. Nbd2 {[%emt 0:00:13]} e5 {[%emt 0:00:01]} 7. Nc4 {[%emt 0:00:02]} b5 {[%emt 0:00:03]} 8. Ne3 {[%emt 0:00:09]} Be7 {[%emt 0:00:30]} 9. a4 {[%emt 0:00:02]} O-O {[%emt 0:00:11]} 10. O-O {[%emt 0:00:05]} Rd8 {[%emt 0:00:02]} 11. Qe2 {[%emt 0:00:13]} Bf8 {[%emt 0:00:30]} 12. b3 {[%emt 0:00:03]} Rb8 {[%emt 0:00:10]} 13. Bb2 {[%emt 0:00:02]} Re8 {[%emt 0:00:02]} 14. h3 {[%emt 0:00:09]} a6 {[%emt 0:00:01]} 15. Nh4 {[%emt 0:00:51]} Qd8 {[%emt 0:00:29]} 16. Nhf5 {[%emt 0:00:53]} g6 {[%emt 0:01:00]} 17. Ng3 {[%emt 0:00:38]} Bg7 {[%emt 0:00:24]} 18. Qe1 {[%emt 0:00:11]} Be6 {[%emt 0:00:12]} 19. axb5 {[%emt 0:00:08]} axb5 {[%emt 0:00:01]} 20. Bxe5 {[%emt 0:00:19]} Ra8 {[%emt 0:00:01]} 21. Rxa8 {[%emt 0:00:09]} Qxa8 {[%emt 0:00:01]} 22. Qc3 {[%emt 0:00:12]} Qd8 {[%emt 0:00:01]} 23. f4 {[%emt 0:00:07]} Bc8 {[%emt 0:00:05]} 24. Ra1 {[%emt 0:00:15]} Rxe5 {[%emt 0:00:37]} 25. fxe5 {[%emt 0:00:04]} Nd7 {[%emt 0:00:01]} 26. Ng4 {[%emt 0:00:37]} b4 {[%emt 0:00:10]} 27. Qb2 {[%emt 0:00:08]} h5 {[%emt 0:00:31]} 28. Nf6+ {[%emt 0:00:02]} Nxf6 {[%emt 0:00:01]} 29. exf6 {[%emt 0:00:01]} Bxf6 {[%emt 0:00:01]} 30. e5 {[%emt 0:00:02]} Bh4 {[%emt 0:00:20]} 31. Ne4 {[%emt 0:00:04]} Bf5 {[%emt 0:00:01]} 32. Nf6+ {[%emt 0:00:19]} Kg7 {[%emt 0:00:01]} 33. Rf1 {[%emt 0:00:15]} Be6 {[%emt 0:00:11]} 34. Kh2 {[%emt 0:00:22]} Bg5 {[%emt 0:00:09]} 35. Qa1 {[%emt 0:00:25]} Be3 {[%emt 0:00:22]} 36. Kh1 {[%emt 0:00:01]} Qb8 {[%emt 0:00:22]} 37. Re1 {[%emt 0:00:23]} Bd4 {[%emt 0:00:03]} 38. Qc1 {[%emt 0:00:03]} Bc3 {[%emt 0:00:31]} 39. Re2 {[%emt 0:00:06]} Qa8 {[%emt 0:00:17]} 40. Kh2 {[%emt 0:00:08]} Bd4 {[%emt 0:00:02]} 41. Qe1 {[%emt 0:00:21]} Qh8 {[%emt 0:00:07]} 42. Qd2 {[%emt 0:00:07]} Qa8 {[%emt 0:00:14]} 43. Qe1 {[%emt 0:00:01]} Qh8 {[%emt 0:00:02]} 44. Re4 {[%emt 0:00:05]} Qh6 {[%emt 0:00:05]} 45. Kh1 {[%emt 0:00:32]} Bc3 {[%emt 0:00:04]} 46. Qg1 {[%emt 0:00:05]} Bf5 {[%emt 0:00:08]} 47. Re2 {[%emt 0:00:04]} Qf4 {[%emt 0:00:08]} 48. Ne8+ {[%emt 0:00:06]} Kh7 {[%emt 0:00:07]} 49. Nd6 {[%emt 0:00:00]} Bd4 {[%emt 0:00:10]} 50. Qe1 {[%emt 0:00:05]} Be6 {[%emt 0:00:01]} 51. Nc4 {[%emt 0:00:12]} Bd5 {[%emt 0:00:02]} 52. Nd2 {[%emt 0:00:07]} Bc3 {[%emt 0:00:04]} 53. Qf1 {[%emt 0:00:01]} Bxd2 {[%emt 0:00:02]} 54. Rf2 {[%emt 0:00:01]} Qh4 {[%emt 0:00:12]} 55. Rxf7+ {[%emt 0:00:02]} Kh6 {[%emt 0:00:01]} 56. Kh2 {[%emt 0:00:07]} Qg5 {[%emt 0:00:04]} 57. Rf8 {[%emt 0:00:02]} Qxe5+ {[%emt 0:00:03]} 58. Kh1 {[%emt 0:00:00]} Qe1 {[%emt 0:00:03]} 59. Qxe1 {[%emt 0:00:01]} Bxe1 {[%emt 0:00:00]} 60. Rf1 {[%emt 0:00:01]} Bc3 {[%emt 0:00:01]} 61. Kh2 {[%emt 0:00:00]} g5 {[%emt 0:00:01]} 62. Kg3 {[%emt 0:00:00]} Be5+ {[%emt 0:00:02]} 63. Kf2 {[%emt 0:00:00]} Kg6 {[%emt 0:00:00]} 64. g3 {[%emt 0:00:01]} Bd4+ {[%emt 0:00:01]} 65. Ke2 {[%emt 0:00:00]} Be6 {[%emt 0:00:01]} 66. Rf8 {[%emt 0:00:00]} Bxh3 {[%emt 0:00:01]} 67. Kf3 {[%emt 0:00:00]} Bg4+ {[%emt 0:00:01]} 68. Kg2 {[%emt 0:00:00]} Bd1 {[%emt 0:00:01]} 69. Rc8 {[%emt 0:00:00]} Bxc2 {[%emt 0:00:01]} 70. Rxc6+ {[%emt 0:00:02]} Kf5 {[%emt 0:00:01]} 0-1